fUST/lending_fUST_20260224
["ID","MTS","AMOUNT","RATE_DAILY","PERIOD"]
[406419872,1771873840141,-210.04768775,0.00013821,2]
[406419874,1771873840150,-1000.0,0.00013821,2]
[406419876,1771873840159,-1000.0,0.00013821,2]
[406419878,1771873840168,-1000.0,0.00013821,2]
[406419880,1771873840178,-1000.0,0.00013821,2]
[406419882,1771873840187,-1000.0,0.00013821,2]
[406419884,1771873840196,-1000.0,0.00013821,2]
[406419886,1771873840205,-1000.0,0.00013821,2]
[406419888,1771873840215,-1000.0,0.00013821,2]
[406419890,1771873840224,-1000.0,0.00013821,2]
[406419892,1771873840234,-311.70754032,0.00013821,2]
[406419894,1771873840243,-1000.0,0.00013821,2]
[406419896,1771873840252,-1000.0,0.00013821,2]
[406419898,1771873840261,-1000.0,0.00013863,2]
[406419900,1771873840270,-500.0,0.00013971,2]
[406419902,1771873840280,-164.62566258,0.00013973,2]
[406419904,1771873840289,-500.0,0.00014245,2]
[406419906,1771873840299,-453.58112453,0.00014247,2]
[406419908,1771873840308,-1000.0,0.00014247,2]
[406419910,1771873840317,-409.11401902,0.00014247,2]
[406419912,1771873840326,-1000.0,0.00014247,2]
[406419915,1771873840335,-1000.0,0.00014247,2]
[406419917,1771873840345,-500.0,0.00014247,2]
[406419920,1771873840355,-1000.0,0.00014247,2]
[406419923,1771873840364,-1000.0,0.00014247,2]
[406419925,1771873840373,-500.0,0.00014247,2]
[406419927,1771873840382,-1000.0,0.00014247,2]
[406419929,1771873840391,-300.0,0.00014247,2]
[406419931,1771873840403,-1000.0,0.00014247,2]
[406419933,1771873840413,-428.25924228,0.00014247,2]
[406419935,1771873840423,-223.77416114,0.00014247,2]
[406419937,1771873840432,-508.13123383,0.00014247,2]
[406419939,1771873840443,-500.0,0.00014247,2]
[406419941,1771873840452,-1000.0,0.00014247,2]
[406419943,1771873840460,-1094.89595073,0.00014247,2]
[406419945,1771873840471,-1000.0,0.00014247,2]
[406419946,1771873840480,-1002.59898926,0.00014247,2]
[406419948,1771873840489,-1000.0,0.00014247,2]
[406419950,1771873840498,-1000.0,0.00014247,2]
[406419952,1771873840507,-1000.0,0.00014247,2]
[406419954,1771873840516,-500.0,0.00014247,2]
[406419956,1771873840525,-1000.0,0.00014247,2]
[406419958,1771873840535,-1000.0,0.00014247,2]
[406419960,1771873840544,-1000.0,0.00014247,2]
[406419962,1771873840554,-500.0,0.00014247,2]
[406419964,1771873840563,-232.62213277,0.00014247,2]
[406419966,1771873840572,-507.50724426,0.00014247,2]
[406419968,1771873840582,-1000.0,0.00014247,2]
[406419970,1771873840591,-1000.0,0.00014247,2]
[406419972,1771873840601,-1000.0,0.00014247,2]
[406419974,1771873840610,-1000.0,0.00014247,2]
[406419976,1771873840620,-389.16745886,0.00014247,2]
[406419978,1771873840630,-1000.0,0.00014247,2]
[406419981,1771873840639,-1000.0,0.00014247,2]
[406419983,1771873840649,-1000.0,0.00014247,2]
[406419984,1771873840658,-1063.69048419,0.00014247,2]
[406419986,1771873840667,-1000.0,0.00014247,2]
[406419988,1771873840677,-1000.0,0.00014247,2]
[406419990,1771873840687,-1500.0,0.00014368,2]
[406419992,1771873840697,-680.1746526,0.00014368,2]
[406419994,1771873840706,-314.20889447,0.00014368,2]
[406420003,1771873840781,-76.66878831,0.00014368,2]
[406420392,1771873844611,-82.03737419,0.00014368,2]
[406420394,1771873844622,-192.93060234,0.00014368,2]
[406420396,1771873844631,-500.0,0.00014368,2]
[406420398,1771873844640,-268.11186324,0.00014368,2]
[406420400,1771873844649,-500.0,0.00014368,2]
[406420402,1771873844658,-941.78327065,0.00014368,2]
[406420404,1771873844669,-558.21672935,0.00014368,2]
[406420406,1771873844678,-1016.54109597,0.00014368,2]
[406420408,1771873844687,-420.0,0.00014551,2]
[406420410,1771873844696,-725.23575112,0.00014599,2]
[406420412,1771873844708,-675.64809127,0.00014599,2]
[406420596,1771873846476,-279.11615761,0.00014599,2]
[406420598,1771873846486,-198.94384239,0.00014795,2]
[406421146,1771873852421,151.19059883,0.00042422,120]
[406423505,1771874736139,-300.0,0.00013272,2]
[406423506,1771874736161,-292.58352443,0.00013272,2]
[406423507,1771874745946,151.0,0.00042419,120]
[406423508,1771874746264,151.0,0.00042419,120]
[406423509,1771874746558,151.0,0.00042419,120]
[406423511,1771874842128,-1080.39747855,0.00012672,2]
[406423534,1771875031578,-5000.0,0.0001242,2]
[406423535,1771875031588,-929.22967729,0.00012545,2]
[406423536,1771875031598,-1070.77032271,0.00012672,2]
[406423537,1771875031609,-587.44720124,0.00012672,2]
[406423538,1771875031618,-300.0,0.00013272,2]
[406423539,1771875031627,-1200.0,0.00013272,2]
[406423541,1771875031636,-150.0,0.00013272,2]
[406423542,1771875031645,-500.0,0.00013273,2]
[406423543,1771875031655,-500.0,0.00013273,2]
[406423544,1771875031664,-387.03867066,0.00013273,2]
[406423545,1771875031673,-500.0,0.00013273,2]
[406423546,1771875031682,-561.36786673,0.00013273,2]
[406423547,1771875031691,-2159.75904857,0.00013596,2]
[406423548,1771875031700,-300.0,0.00013695,2]
[406423549,1771875031710,-500.0,0.00013696,2]
[406423550,1771875031720,-500.0,0.00013696,2]
[406423551,1771875031733,-500.0,0.00013696,2]
[406423552,1771875031743,-302.1368812,0.00013696,2]
[406423553,1771875031753,-500.0,0.00013696,2]
[406423554,1771875031766,-373.87171161,0.00013696,2]
[406423555,1771875031775,-500.0,0.00013696,2]
[406423556,1771875031784,-500.0,0.00013696,2]
[406423557,1771875031793,-500.0,0.00013696,2]
[406423558,1771875031803,-500.0,0.00013696,2]
[406423559,1771875031812,-500.0,0.00013696,2]
[406423560,1771875031823,-500.0,0.00013696,2]
[406423561,1771875031832,-500.0,0.00013696,2]
[406423562,1771875031842,-500.0,0.00013696,2]
[406423563,1771875031853,-500.0,0.00013696,2]
[406423564,1771875031864,-500.0,0.00013696,2]
[406423565,1771875031874,-500.0,0.00013696,2]
[406423566,1771875031884,-500.0,0.00013696,2]
[406423567,1771875031893,-500.0,0.00013696,2]
[406423568,1771875031903,-500.0,0.00013696,2]
[406423569,1771875031915,-394.59029872,0.00013696,2]
[406423570,1771875031926,-500.0,0.00013696,2]
[406423571,1771875031936,-500.0,0.00013696,2]
[406423572,1771875031945,-218.64195012,0.00013696,2]
[406423578,1771875037881,-413.66214296,0.00013698,2]
[406423579,1771875037891,-359.72550054,0.00013698,2]
[406423580,1771875037901,-303.16338553,0.00013698,2]
[406423581,1771875037910,-226.41391193,0.00013698,2]
[406423582,1771875037919,-500.0,0.00013699,2]
[406423583,1771875037929,-221.70783444,0.00013699,2]
[406423584,1771875037938,-317.24757628,0.00013699,2]
[406423585,1771875037948,-500.0,0.00013699,2]
[406423586,1771875037957,-160.79313358,0.00013699,2]
[406423587,1771875037967,-202.87279528,0.00013699,2]
[406423588,1771875037977,-500.0,0.00013699,2]
[406423589,1771875037986,-500.0,0.00013699,2]
[406423590,1771875037995,-29.08747145,0.00013699,2]
[406423591,1771875038008,-471.72988038,0.00013699,2]
[406423592,1771875038019,-166.20744491,0.00013699,2]
[406423593,1771875038029,-487.18735371,0.00013699,2]
[406423594,1771875038040,-12.81264629,0.00013699,2]
[406423595,1771875038051,-500.0,0.00013699,2]
[406423596,1771875038061,-300.0,0.00013699,2]
[406423597,1771875038070,-500.0,0.00013699,2]
[406423598,1771875038080,-500.0,0.00013699,2]
[406423599,1771875038089,-500.0,0.00013699,2]
[406423600,1771875038099,-500.37573102,0.00013699,2]
[406423601,1771875038109,-161.6182511,0.00013699,2]
[406423602,1771875038119,-158.76977669,0.00013699,2]
[406423603,1771875038128,-500.0,0.00013699,2]
[406423604,1771875038138,-500.0,0.00013699,2]
[406423605,1771875038148,-249.09719145,0.00013699,2]
[406423606,1771875038157,-500.0,0.00013699,2]
[406423607,1771875038167,-500.0,0.00013699,2]
[406423608,1771875038176,-500.0,0.00013699,2]
[406423609,1771875038186,-500.0,0.00013699,2]
[406423610,1771875038195,-500.0,0.00013699,2]
[406423611,1771875038205,-500.0,0.00013699,2]
[406423612,1771875038214,-331.60913493,0.00013699,2]
[406423613,1771875038224,-500.0,0.00013699,2]
[406423615,1771875038233,-159.49314715,0.00013699,2]
[406423617,1771875038242,-260.68279972,0.00013699,2]
[406423619,1771875038252,-355.2573341,0.00013699,2]
[406423621,1771875038261,-500.0,0.00013699,2]
[406423623,1771875038270,-309.74789623,0.00013699,2]
[406423625,1771875038280,-500.0,0.00013699,2]
[406423627,1771875038289,-500.0,0.00013699,2]
[406423629,1771875038298,-174.56400017,0.00013699,2]
[406423631,1771875038307,-500.0,0.00013699,2]
[406423632,1771875038317,-500.0,0.00013699,2]
[406423635,1771875038329,-500.0,0.00013699,2]
[406423636,1771875038338,-500.0,0.00013699,2]
[406423638,1771875038348,-301.05615761,0.00013699,2]
[406423641,1771875038358,-587.08757186,0.00013699,2]
[406423643,1771875038367,-500.0,0.00013699,2]
[406423645,1771875038377,-500.0,0.00013699,2]
[406423646,1771875038388,-164.79637771,0.00013699,2]
[406423648,1771875038397,-500.0,0.00013699,2]
[406423650,1771875038408,-500.0,0.00013699,2]
[406423653,1771875038418,-167.30460865,0.00013699,2]
[406423654,1771875038428,-500.0,0.000137,2]
[406423657,1771875038438,-150.0,0.000137,2]
[406423658,1771875038447,-195.220633,0.0001382,2]
[406423661,1771875038457,-1000.0,0.00013821,2]
[406423663,1771875038467,-173.0733468,0.00014147,2]
[406423664,1771875038477,-150.0,0.000142,2]
[406423666,1771875038487,-1016.99176411,0.00014247,2]
[406423668,1771875038496,-1000.0,0.00014247,2]
[406423670,1771875038506,-192.62879521,0.00014247,2]
[406423673,1771875038515,-501.97113606,0.00014247,2]
[406423683,1771875038610,-500.0,0.00014247,2]
[406423685,1771875038621,-1058.84230415,0.00014247,2]
[406423687,1771875038631,-1000.0,0.00014247,2]
[406423689,1771875038641,-1000.0,0.00014247,2]
[406423691,1771875038650,-1000.0,0.00014247,2]
[406423693,1771875038660,-500.0,0.00014247,2]
[406423695,1771875038669,-505.20262571,0.00014247,2]
[406423697,1771875038678,-963.01043928,0.00014247,2]
[406423699,1771875038687,-1000.0,0.00014247,2]
[406423701,1771875038697,-500.0,0.00014247,2]
[406423703,1771875038706,-1000.0,0.00014247,2]
[406423705,1771875038715,-150.44666625,0.00014247,2]
[406423707,1771875038726,-1000.0,0.00014247,2]
[406423709,1771875038736,-692.59923229,0.00014247,2]
[406423711,1771875038746,-367.81742456,0.00014247,2]
[406423713,1771875038757,-1000.0,0.00014247,2]
[406423715,1771875038767,-506.9241229,0.00014293,2]
[406423717,1771875038778,-5319.5452754,0.00014293,2]
[406423719,1771875038788,-1859.210499,0.00014293,2]
[406423721,1771875038798,-358.2060196,0.00014368,2]
[406423723,1771875038807,-195.220633,0.00014402,2]
[406423725,1771875038816,-420.0,0.00014551,2]
[406423727,1771875038827,-3650.15137718,0.00014598,2]
[406423729,1771875038836,-1680.0,0.00014599,2]
[406423731,1771875038847,-500.0,0.00014795,2]
[406423733,1771875038856,-401.76167711,0.00014795,2]
[406423735,1771875038865,-195.33133116,0.00014795,2]
[406423737,1771875038875,-684.82155238,0.00014795,2]
[406423739,1771875038885,-273.03739062,0.00014795,2]
[406423740,1771875038894,-267.33341425,0.00014795,2]
[406423742,1771875038905,-150.0,0.000148,2]
[406423745,1771875038914,-514.24,0.00014816,2]
[406423747,1771875038923,-195.220633,0.00014983,2]
[406423749,1771875038933,-255.271459,0.00015068,2]
[406423750,1771875038943,-177.0,0.00015272,2]
[406423753,1771875038953,-150.0,0.000153,2]
[406423754,1771875038962,-195.220633,0.00015565,2]
[406423756,1771875038971,-705.48859201,0.00015625,2]
[406423758,1771875038981,-275.35870224,0.00015625,2]
[406423760,1771875038990,-150.0,0.000159,2]
[406423762,1771875039000,-506.9241229,0.00015952,2]
[406423764,1771875039011,-5319.5452754,0.00015952,2]
[406423766,1771875039020,-407.0,0.00015953,2]
[406423768,1771875039030,-259.09,0.00016,2]
[406423771,1771875039040,-2351.0,0.00016059,2]
[406423772,1771875039050,-402.46794617,0.00016111,2]
[406423774,1771875039060,-270.81067649,0.00016111,2]
[406423777,1771875039071,-195.220633,0.00016147,2]
[406423779,1771875039081,-266.44464304,0.00016207,2]
[406423781,1771875039091,-200.0,0.000164,2]
[406423783,1771875039102,-2159.75904856,0.00016454,2]
[406423785,1771875039113,-1859.210499,0.00016482,2]
[406423786,1771875039123,-195.220633,0.00016729,2]
[406423788,1771875039134,-41230.21386167,0.00017,2]
[406423791,1771875039146,-208.08371256,0.00017202,2]
[406423792,1771875039156,-204.0,0.00017272,2]
[406423794,1771875039166,-5367.2224671,0.000173,2]
[406423796,1771875039176,-506.9241229,0.00017611,2]
[406423799,1771875039186,-5319.5452754,0.00017611,2]
[406423800,1771875039196,-1967.0,0.00017665,2]
[406423803,1771875039207,-334.87794535,0.00017835,2]
[406423805,1771875039216,-1036.83,0.0001799,3]
[406423806,1771875039226,-518.41,0.0001799,3]
[406423808,1771875039235,-259.21,0.0001799,3]
[406423810,1771875039244,-777.63,0.0001799,3]
[406423812,1771875039254,-232.05909094,0.00018,2]
[406423815,1771875039263,-23707.94403711,0.00018,2]
[406423897,1771875040042,-19863.52412904,0.00018,2]
[406424176,1771875042953,-436.18726686,0.00018,2]
[406424476,1771875045771,-11080.42245477,0.00018,2]
[406424478,1771875045933,-1633.05859321,0.00018,2]
[406424482,1771875072697,159.20994406,0.00013699,2]
[406424483,1771875079384,-479.07730228,0.00013699,2]
[406424484,1771875109826,150.0,0.00010886,120]
[406424485,1771875110184,150.0,0.00012052,120]
[406424486,1771875110542,172.79,0.00013219,120]
[406424487,1771875110891,230.39,0.00014385,120]
[406424488,1771875111236,287.99,0.00015551,120]
[406424489,1771875125903,151.0,0.00042419,120]
[406424490,1771875127034,156.587,0.00042419,60]
[406424491,1771875127666,162.380719,0.00042419,30]
[406424492,1771875128286,168.3888056,0.00042419,120]
[406424493,1771875128405,150.0,0.00011244,120]
[406424494,1771875128828,500.0,0.00042419,120]
[406424495,1771875128858,150.0,0.00012449,120]
[406424496,1771875128900,250.0,0.00042419,120]
[406424497,1771875128933,174.61919141,0.00042419,49]
[406424498,1771875129217,189.61,0.00013653,120]
[406424499,1771875129495,500.0,0.00042419,60]
[406424500,1771875129587,252.82,0.00014858,120]
[406424501,1771875129746,181.08010149,0.00042419,49]
[406424502,1771875129776,250.0,0.00042419,60]
[406424503,1771875130153,500.0,0.00042419,30]
[406424504,1771875130475,250.0,0.00042419,30]
[406424505,1771875130507,187.78006525,0.00042419,30]
[406424506,1771875130810,500.0,0.00042419,120]
[406424507,1771875131037,250.0,0.00042419,120]
[406424508,1771875131171,250.0,0.00042419,120]
[406424509,1771875131212,194.72792766,0.00042419,99]
[406424510,1771875131593,500.0,0.00042419,49]
[406424511,1771875131821,250.0,0.00042419,49]
[406424512,1771875131860,201.93286099,0.00042419,30]
[406424513,1771875132278,500.0,0.00042419,49]
[406424514,1771875132435,250.0,0.00042419,49]
[406424515,1771875132547,209.40437684,0.00042419,10]
[406424516,1771875133096,250.0,0.00042419,30]
[406424517,1771875133203,217.15233878,0.00042419,10]
[406424518,1771875133705,250.0,0.00042419,99]
[406424519,1771875133825,225.18697532,0.00042419,10]
[406424520,1771875134368,250.0,0.00042419,30]
[406424521,1771875134417,233.51889341,0.00042419,10]
[406424522,1771875135014,233.51889341,0.00042419,10]
[406424523,1771875135052,250.0,0.00042419,10]
[406424524,1771875135495,250.0,0.00042419,120]
[406424525,1771875135799,250.0,0.00042419,10]
[406424526,1771875146912,150.0,0.00010406,120]
[406424527,1771875147276,150.0,0.00011521,120]
[406424528,1771875147632,194.22,0.00012636,120]
[406424529,1771875147999,258.96,0.0001375,120]
[406424530,1771875148354,323.7,0.00014865,120]
[406424531,1771875166787,150.0,0.0001052,120]
[406424532,1771875167160,150.0,0.00011647,120]
[406424533,1771875167531,176.6,0.00012774,120]
[406424534,1771875167881,235.47,0.00013902,120]
[406424535,1771875168224,294.33,0.00015029,120]
[406424536,1771875183367,-529.8,0.00019537,120]
[406424537,1771875183393,-452.63287432,0.00020665,120]
[406424538,1771875183425,-1600.12890822,0.00026,30]
[406424539,1771875183458,-255.271459,0.00028767,60]
[406424540,1771875183489,-4683.92,0.00032877,10]
[406424541,1771875183517,-3903.27,0.00032877,10]
[406424542,1771875183547,-10729.57,0.000329,14]
[406424543,1771875183576,-366.0,0.00033995,120]
[406424544,1771875183606,-393.0,0.00035995,120]
[406424545,1771875183748,-420.0,0.00037995,120]
[406424546,1771875183775,-500.0,0.00038356,15]
[406424547,1771875183800,-500.0,0.00038356,15]
[406424548,1771875183828,-500.0,0.00038356,15]
[406424549,1771875183856,-300.0,0.00038356,15]
[406424550,1771875183883,-7134.0905281,0.000384,15]
[406424551,1771875183907,-6065.84643851,0.000386,15]
[406424552,1771875183934,-10729.57,0.000392,14]
[406424553,1771875183962,-447.0,0.00039995,120]
[406424554,1771875183990,-200.0,0.00039999,31]
[406424555,1771875184014,-11090.51332308,0.0004,120]
[406424556,1771875184038,-501.555,0.00040969,30]
[406424557,1771875184063,-889.95,0.00040993,120]
[406424558,1771875184088,-186.74,0.000412,30]
[406424559,1771875184115,-3188.44,0.000412,30]
[406424560,1771875184141,-1455.02,0.000412,14]
[406424561,1771875184165,-179.82017982,0.00041685,26]
[406424562,1771875184189,-474.0,0.00041995,120]
[406424563,1771875184213,-2000.0,0.000424,14]
[406424564,1771875184237,-500.0,0.000424,14]
[406424565,1771875184261,-1000.0,0.00042419,60]
[406424566,1771875184285,-1000.0,0.00042419,60]
[406424567,1771875184308,-1000.0,0.00042419,60]
[406424568,1771875184332,-1000.0,0.0004242,60]
[406424569,1771875184355,-1000.0,0.0004242,60]
[406424570,1771875184378,-1000.0,0.0004242,60]
[406424571,1771875184401,-1000.0,0.0004242,60]
[406424572,1771875184425,-1000.0,0.0004242,60]
[406424573,1771875184451,-1000.0,0.0004242,60]
[406424574,1771875184477,-1000.0,0.00042421,60]
[406424575,1771875184500,-1000.0,0.00042421,60]
[406424576,1771875184525,-1000.0,0.00042421,60]
[406424577,1771875184552,-1000.0,0.00042421,60]
[406424578,1771875184575,-1000.0,0.00042421,60]
[406424579,1771875184599,-1000.0,0.00042421,60]
[406424580,1771875184624,-1000.0,0.00042422,60]
[406424581,1771875184649,-1000.0,0.00042422,60]
[406424582,1771875184675,-169.62714531,0.00042422,10]
[406424583,1771875184699,-745.46575772,0.00042422,60]
[406424584,1771875184728,-1135.963,0.000425,14]
[406424585,1771875184755,-8073.79,0.00043835,120]
[406424586,1771875184780,-1304.08,0.00043954,60]
[406424587,1771875184810,-501.0,0.00043995,120]
[406424588,1771875184836,-10729.57,0.000445,14]
[406424589,1771875184864,-1304.08,0.0004484,60]
[406424590,1771875184891,-1455.02,0.000451,14]
[406424591,1771875184920,-500.0,0.0004559,60]
[406424592,1771875184945,-785.0,0.000456,30]
[406424593,1771875184971,-1304.08,0.00045726,120]
[406424594,1771875184997,-348.81850431,0.00045995,120]
[406424595,1771875185023,-1304.08,0.00046612,120]
[406424596,1771875185049,-500.0,0.00047002,60]
[406424597,1771875185075,-155.0,0.0004727,30]
[406424598,1771875185099,-1304.08,0.00047497,120]
[406424599,1771875185123,-3188.44,0.000483,30]
[406424600,1771875185147,-1304.08,0.00048383,120]
[406424601,1771875185171,-10729.57,0.000485,14]
[406424602,1771875185195,-1455.02,0.000485,14]
[406424603,1771875185218,-154.13863246,0.00048964,60]
[406424604,1771875185243,-361.57689064,0.00049,60]
[406424605,1771875185268,-1226.609329,0.0004918,21]
[406424606,1771875185291,-1000.0,0.000492,21]
[406424607,1771875185315,-1000.0,0.0004922,21]
[406424608,1771875185338,-1000.0,0.0004924,21]
[406424609,1771875185361,-1000.0,0.0004926,21]
[406424610,1771875185385,-1304.08,0.00049269,120]
[406424611,1771875185410,-1000.0,0.0004928,21]
[406424612,1771875185434,-1235.483668,0.0004928,21]
[406424613,1771875185458,-201.0,0.000493,88]
[406424614,1771875185482,-1504.480632,0.000493,59]
[406424615,1771875185506,-1000.0,0.000493,21]
[406424616,1771875185530,-1000.0,0.000493,21]
[406424617,1771875185554,-150.0,0.00049315,120]
[406424618,1771875185581,-167.0,0.0004992,30]
[406424619,1771875185606,-153.0,0.0005,120]
[406424620,1771875185630,-989.60492644,0.0005,120]
[406424621,1771875185656,-214.0,0.00050318,30]
[406424622,1771875185680,-350.0,0.00050872,30]
[406424623,1771875185704,-350.0,0.00050872,30]
[406424624,1771875185728,-688.0,0.00050872,30]
[406424625,1771875185754,-350.0,0.00050872,30]
[406424626,1771875185779,-350.0,0.00050872,30]
[406424627,1771875185806,-688.0,0.00050872,30]
[406424628,1771875185830,-350.0,0.00050872,30]
[406424629,1771875185928,-688.0,0.00050872,30]
[406424630,1771875185954,-350.0,0.00050872,30]
[406424631,1771875185979,-688.0,0.00050872,30]
[406424632,1771875186002,-350.0,0.00050872,30]
[406424633,1771875186029,-350.0,0.00050872,30]
[406424634,1771875186057,-688.0,0.00050872,30]
[406424635,1771875186081,-350.0,0.00050872,30]
[406424636,1771875186107,-350.0,0.00050872,30]
[406424637,1771875186133,-688.0,0.00050872,30]
[406424638,1771875186160,-350.0,0.00050872,30]
[406424639,1771875186193,-688.0,0.00050872,30]
[406424640,1771875186226,-460.20338763,0.00050872,30]
[406424641,1771875186260,-688.0,0.00050872,30]
[406424642,1771875186289,-688.0,0.00050872,30]
[406424643,1771875186313,-407.0834778,0.00050872,30]
[406424644,1771875186339,-150.0,0.00051,85]
[406424645,1771875186365,-153.0,0.00051,120]
[406424646,1771875186389,-186.74,0.00052,30]
[406424647,1771875186414,-3188.44,0.00052,30]
[406424648,1771875186438,-153.0,0.00052,120]
[406424649,1771875186462,-1455.02,0.00052,14]
[406424650,1771875186488,-8073.79,0.00052054,120]
[406424651,1771875186513,-153.0,0.00053,120]
[406424652,1771875186538,-185.0,0.00053013,14]
[406424653,1771875186561,-160.85057031,0.00053015,120]
[406424654,1771875186592,-10729.57,0.000534,14]
[406424655,1771875186619,-175.0,0.00053799,14]
[406424656,1771875186645,-153.0,0.00054,120]
[406424657,1771875186671,-315.59,0.00054411,120]
[406424658,1771875186695,-150.0,0.00054795,14]
[406424659,1771875186720,-153.0,0.00055,120]
[406424660,1771875186745,-350.0,0.00055342,14]
[406424661,1771875186772,-150.0,0.00055395,14]
[406424662,1771875186798,-212.0,0.00055395,14]
[406424663,1771875186827,-197.0,0.0005544,14]
[406424664,1771875186852,-158.0,0.00055462,14]
[406424665,1771875186878,-269.0,0.00055462,14]
[406424666,1771875186903,-153.0,0.00056,120]
[406424667,1771875186928,-153.0,0.00057,120]
[406424668,1771875186953,-185.0,0.00057364,14]
[406424669,1771875186979,-153.0,0.00058,120]
[406424670,1771875187005,-150.0,0.000585,14]
[406424671,1771875187030,-241.0,0.000585,14]
[406424672,1771875187055,-153548.51776205,0.000589,120]
[406424673,1771875187082,-10000.0,0.00059,10]
[406424674,1771875187108,-10000.0,0.00059,10]
[406424675,1771875187132,-10000.0,0.00059,10]
[406424676,1771875187156,-10000.0,0.00059,10]
[406424677,1771875187180,-10000.0,0.00059,10]
[406424678,1771875187205,-153.0,0.00059,120]
[406424679,1771875187229,-1455.02,0.00059,14]
[406424680,1771875187255,-258.0,0.00059704,21]
[406424681,1771875187281,-192.0,0.00059776,21]
[406424682,1771875187306,-153.0,0.0006,120]
[406424683,1771875187332,-8073.79,0.00060273,120]
[406424684,1771875187358,-153.0,0.00061,120]
[406424685,1771875187382,-7600.01311748,0.00062,120]
[406424686,1771875187406,-153.0,0.00062,120]
[406424687,1771875187430,-1000000.0,0.00062469,120]
[406424688,1771875187455,-153.0,0.00063,120]
[406424689,1771875187518,150.0,0.00046599,30]
[406424690,1771875187547,249.09,0.00051592,30]
[406424691,1771875187580,373.64,0.00056585,30]
[406424692,1771875187651,498.19,0.00061578,30]
[406424693,1771875188354,150.0,0.00010457,120]
[406424694,1771875188725,150.0,0.00011578,120]
[406424695,1771875189083,160.13,0.00012698,120]
[406424696,1771875189467,213.51,0.00013819,120]
[406424697,1771875189824,266.89,0.00014939,120]
[406424698,1771875190152,320.26,0.0001606,120]
[406424699,1771875190501,373.64,0.0001718,120]
[406424700,1771875192722,3252.72,0.00032877,10]
[406424701,1771875201899,150.0,0.00043744,30]
[406424702,1771875202350,150.13,0.00048431,30]
[406424703,1771875202704,225.2,0.00053118,30]
[406424704,1771875203070,300.27,0.00057805,30]
[406424705,1771875203415,375.33,0.00062492,30]
[406424706,1771875203445,2710.6,0.00032877,10]
[406424707,1771875205911,150.0,0.00040514,120]
[406424708,1771875206290,150.0,0.00044855,120]
[406424709,1771875206634,150.0,0.00049195,120]
[406424710,1771875206993,150.0,0.00053536,120]
[406424711,1771875207361,160.86,0.00057877,120]
[406424712,1771875230032,150.0,0.00015018,120]
[406424713,1771875249162,150.0,0.00013469,120]
[406424714,1771875249520,150.0,0.00014912,120]
[406424715,1771875267269,150.0,0.00014191,120]
[406424716,1771875278327,150.0,0.00014179,120]
[406424717,1771875300273,150.0,0.00014098,120]
[406424718,1771875305846,150.0,0.00014093,120]
[406424719,1771875324022,150.0,0.00014067,120]
[406424720,1771875335623,150.0,0.00014011,120]
[406424721,1771875360565,151.19059883,0.00042328,120]
[406424722,1771875360829,150.0,0.0001399,120]
[406424723,1771875382271,150.0,0.00015028,120]
[406424724,1771875403466,150.0,0.00013997,120]